Cogmind - Beta 14 @@@ ROGUE MODE // 2024.12.29 @ 15:29:49 Player: DuckBoy Result: Destroyed by W3-KYT(R) with Subdweller Machine Gun Performance ------------- Evolutions (0) 0 Regions Visited (2) 400 Robots Destroyed (24) 120 Value Destroyed (477) 477 Prototype IDs (0) 0 Alien Tech Used (0) 0 Bonus (0) 0 TOTAL SCORE: 997 Bonus ------- None Cogmind --------- Core Integrity 0/250 Matter 244/300 Energy 265/265 System Corruption 0% Temperature Warm (162) Movement Treading (340) Ox2 Location -10/Subcaves Parts ------- > --- POWER (1) -------- Reinforced Ion Engine > --- PROPULSION (2) --- Light Treads Spiked Treads > --- UTILITY (2) ------ Huge Storage Unit Subdweller Optics > --- WEAPON (2) ------- Assault Rifle Light Assault Rifle > --- INVENTORY (25) --- Ion Engine Aluminum Leg Aluminum Leg Wheel Compact Wheel Sensor Array Hardened Light Armor Plating Subdweller Laser Light Assault Rifle Scrap Shield Fragment (50) Scrap Shield Fragment (49) Scrap Shield Fragment (45) Peak State ------------ > --- POWER ------------ Reinforced Ion Engine > --- PROPULSION ------- Aluminum Leg Makeshift Leg > --- UTILITY ---------- Huge Storage Unit Subdweller Optics > --- WEAPON ----------- Assault Rifle Light Assault Rifle > --- INVENTORY -------- Ion Engine Light Treads Aluminum Leg Wheel Compact Wheel Sensor Array Hardened Light Armor Plating Subdweller Laser Light Assault Rifle [Rating: 13] Favorites ----------- Power Reinforced Ion Engine Engine Reinforced Ion Engine Propulsion Light Treads Treads Light Treads Leg Aluminum Leg Wheel Wheel Utility Huge Storage Unit Device Subdweller Optics Storage Huge Storage Unit Processor Signal Interpreter Weapon Assault Rifle Ballistic Gun Assault Rifle Build | -11 -10 -10 ------- Run | Yrd Mat Sub Slots Evolved . | . . . Power . | . . . Propulsion . | . . . Utility . | . . . Weapon . | . . . Parts Attached 18 | 5 6 7 Power 2 | 1 1 . Engine 2 | 1 1 . Core . | . . . Reactor . | . . . Propulsion 8 | 2 2 4 Treads 4 | . 2 2 Leg 2 | . . 2 Wheel 2 | 2 . . Hover . | . . . Flight . | . . . Utility 4 | . 3 1 Device 1 | . . 1 Storage 2 | . 2 . Processor 1 | . 1 . Hackware . | . . . Protection . | . . . Artifact . | . . . Weapon 4 | 2 . 2 Energy Gun . | . . . Energy Cannon . | . . . Ballistic Gun 4 | 2 . 2 Ballistic Cannon . | . . . Launcher . | . . . Special Weapon . | . . . Impact Weapon . | . . . Slashing Weapon . | . . . Piercing Weapon . | . . . Special Melee Weapon . | . . . Unidentified Prototypes . | . . . Parts Lost 4 | . . 4 Power . | . . . Propulsion 2 | . . 2 Utility . | . . . Weapon 2 | . . 2 Highest Loss Streak 2 | . . 2 To Critical Strikes . | . . . Average Slot Usage (%) 98 | . 97 98 Engine 14 | . 14 14 Treads 19 | . 26 13 Leg 7 | . . 13 Device 4 | . . 8 Storage 13 | . 13 14 Processor 8 | . 12 5 Ballistic Gun 27 | . 28 27 Peak Build Rating 13 | 5 9 13 Average Rating 9 | 4 8 11 On Entrance 4 | . 5 9 Naked Turns . | . . . Heaviest Build 95 | 9 94 95 Greatest Support 40 | 26 40 40 Greatest Overweight (x) 9 | . 2 9 Average Overweight (x) 1 | . . 2 Largest Inventory Capacity 25 | 5 25 25 Average Capacity 21 | 5 18 25 Most Carried 12 | 5 10 12 Average Carried 8 | 3 8 9 Final Capacity 25 | 5 25 25 Final Carried 12 | 5 10 12 Class Distribution -------------------- 100% | Mutant Dominant Class ---------------- Mutant | -10/Materials Mutant | -10/Subcaves Resources | -11 -10 -10 ----------- Run | Yrd Mat Sub Matter Collected 777 | 249 342 186 Remotely . | . . . Salvage Created 675 | 61 403 211 Parts 44 | 1 25 18 Haulers Intercepted . | . . . Recyclers Shooed 1 | . 1 . Parts Field Recycled . | . . . Retrieved Matter . | . . . Parts Self-Destructed 13 | . . 13 Prevented . | . . . Kills | -11 -10 -10 ------- Run | Yrd Mat Sub Combat Hostiles Destroyed 19 | . 9 10 Guns 19 | . 9 10 Classes Destroyed 6 | 1 4 1 Worker 2 | . 2 . Recycler 1 | 1 . . Watcher 2 | . 2 . Swarmer 10 | . 3 7 Grunt 6 | . 6 . Subdweller 3 | . . 3 Best Kill Streak 4 | 1 4 3 Combat Bots Only 4 | . 4 3 Max Kills in Single Turn 2 | 1 1 2 Gunslinging 1 | . . 1 Exploded . | . . . Melee . | . . . Uniques/NPCs Destroyed . | . . . Combat | -11 -10 -10 -------- Run | Yrd Mat Sub Hostile Shots Fired 132 | . 53 79 Missed 42 | . 17 25 Damage Taken 1095 | . 344 751 Core 264 | . 96 168 Absorbed by Shields . | . . . Core Remaining (%) 100 | 100 . . Volleys Fired 89 | 8 41 40 Largest 2 | 2 2 2 Hottest 40 | 40 40 40 Shots Fired 177 | 16 82 79 Gun 177 | 16 82 79 Cannon . | . . . Launcher . | . . . Special . | . . . Kinetic 177 | 16 82 79 Thermal . | . . . Explosive . | . . . Electromagnetic . | . . . Robot Hit Streak 12 | 10 12 10 Robot Miss Streak 4 | 1 4 4 Penetration Max . | . . . Secondary Targets 3 | . 2 1 Max Gunslinging Chain 1 | . 1 1 Shots Hit Robots 111 | 13 46 52 Core Hits 43 | 2 23 18 Critical Kills . | . . . Critical Parts Destroyed . | . . . Critical Strikes . | . . . Melee Attacks . | . . . Impact . | . . . Slashing . | . . . Piercing . | . . . Sneak Attacks . | . . . Combat Hostiles . | . . . Follow-up Attacks . | . . . Damage Inflicted 1350 | 149 612 589 Guns 1327 | 149 589 589 Cannons . | . . . Explosions . | . . . Melee . | . . . Ramming 23 | . 23 . Kinetic 1327 | 149 589 589 Thermal . | . . . Explosive . | . . . Electromagnetic . | . . . Impact . | . . . Slashing . | . . . Piercing . | . . . Highest Corruption . | . . . Average Corruption . | . . . Corruption Purged . | . . . Corruption Blocked . | . . . Overload Shots . | . . . Overflow Damage . | . . . Projectiles . | . . . Explosions . | . . . Melee . | . . . Knockbacks . | . . . Impact . | . . . Kinetic . | . . . Secondary . | . . . Self-Inflicted Damage . | . . . Shots . | . . . Rammed 5 | . 5 . Targets Rammed 5 | . 5 . Kicked . | . . . Crushed . | . . . Highest Temperature 253 | . 42 253 Average Temperature 56 | . 23 205 Received Heat Transfer 497 | . 123 374 Siege Activations . | . . . Robots Corrupted . | . . . Combat Hostiles . | . . . Parts Fried . | . . . Impact Corruptions . | . . . Robots Melted . | . . . Combat Hostiles . | . . . Parts Melted 1 | . . 1 Heat Transferred . | . . . Parts Sabotaged . | . . . Parts Stolen . | . . . Parts Stripped . | . . . Power Chain Reactions . | . . . Alert | -11 -10 -10 ------- Run | Yrd Mat Sub Peak Influence 186 | 5 186 . Initial 3 | . 3 . Average 60 | 1 64 . Maximum Alert Level . | . . . Low Security (%) 100 | 100 100 . Level 1 . | . . . Level 2 . | . . . Level 3 . | . . . Level 4 . | . . . Level 5 . | . . . High Security . | . . . Max Security . | . . . Squads Dispatched 1 | . 1 . Investigation . | . . . Extermination . | . . . Reinforcement 1 | . 1 . Assault . | . . . Garrison . | . . . Intercept . | . . . Searches Triggered . | . . . Construction Impeded . | . . . Haulers Reinforced . | . . . Active Scanning Responses . | . . . Cargo Convoy Interrupts . | . . . Stealth | -11 -10 -10 --------- Run | Yrd Mat Sub Distress Signals . | . . . Communications Jammed . | . . . Distress Signals . | . . . Times Spotted 28 | . 13 15 Peak Tracking Total 5 | . 5 4 Tactical Retreats 4 | . . 4 Traps | -11 -10 -10 ------- Run | Yrd Mat Sub Traps Triggered . | . . . Indirectly . | . . . Trap Hack Attempts . | . . . Triggered . | . . . Disarmed . | . . . Reprogrammed . | . . . Reused . | . . . Traps Extracted . | . . . Installed . | . . . Triggered . | . . . Machines | -11 -10 -10 ---------- Run | Yrd Mat Sub Machines Disabled . | . . . Max in Single Turn . | . . . Machines Repaired . | . . . Machines Dismantled . | . . . Machines Sabotaged . | . . . Overloaded Fab Kills . | . . . Hacking | -11 -10 -10 --------- Run | Yrd Mat Sub Machines Accessed . | . . . Terminals . | . . . Fabricators . | . . . Repair Stations . | . . . Recycling Units . | . . . Scanalyzers . | . . . Garrison Access . | . . . Total Hacks . | . . . Successful . | . . . Failed . | . . . Catastrophic . | . . . Database Lockouts . | . . . Manual . | . . . Terminals . | . . . Fabricators . | . . . Repair Stations . | . . . Recycling Units . | . . . Scanalyzers . | . . . Garrison Access . | . . . Terminal Hacks . | . . . Fabricator Hacks . | . . . Repair Station Hacks . | . . . Recycling Unit Hacks . | . . . Scanalyzer . | . . . Garrison Access Hacks . | . . . Unauthorized Hacks . | . . . Terminals . | . . . Fabricators . | . . . Repair Stations . | . . . Recycling Units . | . . . Scanalyzers . | . . . Garrison Access . | . . . Data Cores Recovered . | . . . Used . | . . . Hacking Detections . | . . . Full Trace Events . | . . . Feedback Events . | . . . Feedback Blocked . | . . . Robot Schematics Acquired . | . . . Robots Built . | . . . Authchips . | . . . Time . | . . . Total Robot Build Rating . | . . . Part Schematics Acquired . | . . . Parts Built . | . . . Authchips . | . . . Time . | . . . Total Part Build Rating . | . . . Parts Repaired . | . . . Time . | . . . Parts Recycled . | . . . Recycled Matter . | . . . Retrieved Matter . | . . . Retrieved Components . | . . . Parts Scanalyzed . | . . . Part Schematics Acquired . | . . . Parts Damaged . | . . . Bothacking | -11 -10 -10 ------------ Run | Yrd Mat Sub Used RIF Installer . | . . . Robots Hacked . | . . . Non-combat . | . . . Combat . | . . . Robot Hacks Applied . | . . . Relay Couplers Released . | . . . Fabnet Peak Effective % . | . . . Robots Rewired . | . . . Allies Hacked . | . . . Hacks Repelled . | . . . Allies | -11 -10 -10 -------- Run | Yrd Mat Sub Total Allies . | . . . Largest Group . | . . . Highest-Rated Group . | . . . Highest-Rated Ally . | . . . Total Orders . | . . . Ally Attacks . | . . . Total Damage . | . . . Kills . | . . . Allies Corrupted . | . . . Allies Melted . | . . . Intel | -11 -10 -10 ------- Run | Yrd Mat Sub Robot Analysis Total . | . . . Derelict Logs Recovered . | . . . Drone Launches . | . . . Drone Recoveries . | . . . Exploration | -11 -10 -10 ------------- Run | Yrd Mat Sub Turns Passed 2645 | 81 1113 1451 Spaces Moved 745 | 45 337 363 Core 1 | 1 . . Treads 497 | . 309 188 Legs 175 | . . 175 Wheels 72 | 44 28 . Hover . | . . . Flight . | . . . Fastest Speed 50 | 50 90 320 Average Speed 275 | 88 211 357 Slowest Speed 750 | 90 320 750 Overloaded Moves . | . . . Propulsion Burnouts . | . . . Robots Hopped . | . . . Cave-ins Triggered . | . . . Exploration Rate (%) 34 | 5 66 33 Regions Visited 2 Branch Regions 1 Pre-discovered Areas . | . . . Known Exits Taken 1 | . 1 . Unknown Exits Taken 1 | 1 . . Scrap Searched . | . . . Spaces Dug . | . . . Terrain Destroyed . | . . . Melee . | . . . Projectile . | . . . AOE . | . . . Terrain Rammed . | . . . Walls Destroyed . | . . . Machines Disabled . | . . . Actions | -11 -10 -10 --------- Run | Yrd Mat Sub Total 1163 | 67 653 443 Wait 287 | 5 255 27 Move 743 | 44 336 363 Hop . | . . . Pick Up 18 | 5 7 6 Fast Attach 7 | 5 1 1 Attach 4 | . 1 3 Detach . | . . . Swap 7 | . 4 3 Drop 3 | . 3 . Fire 89 | 8 41 40 Melee . | . . . Ram . | . . . Kick . | . . . Crush 5 | . 5 . Escape Stasis . | . . . Rewire . | . . . Trap . | . . . Miscellaneous . | . . . Route ------- -11/Scrapyard -10/Materials (discovered 3 exits: [*Mat] / [*Min] / *Sub) -10/Subcaves History --------- Turn | Location | Event 27 | -11/Scrapyard | Discovered new exit (range 16) 82 | -11/Scrapyard | Entered Materials 291 | -10/Materials | Discovered new exit (range 8) 311 | -10/Materials | Build established: Mutant 770 | -10/Materials | Discovered new exit (range 6) 1192 | -10/Materials | Discovered new exit (range 3) 1192 | -10/Materials | Identified exit to Subcaves 1195 | -10/Materials | Entered Subcaves 1563 | -10/Subcaves | Core integrity fell below 50% 1811 | -10/Subcaves | Curiously followed by a Cobbler waking with a query about "LVR3C" 2194 | -10/Subcaves | A swath of the cavern ceiling suddenly collapsed 2631 | -10/Subcaves | Core integrity fell below 20% 2646 | -10/Subcaves | Destroyed by W3-KYT(R) with Subdweller Machine Gun Last Messages --------------- 02165_ Acquired Spk. Treads. 02175_ Subatomizers dissect the Sub. Monowheel. A swath of the cavern ceiling suddenly collapses. 02204_ Subatomizers dissect the Sub. Monowheel. 02234_ Subatomizers dissect the Sub. Monowheel, destroying it. 02265_ UF-3G1(u) builds Twisted Machinery. 02471_ Subatomizers dissect the Disposable Heat Sink. 02485_ Subatomizers dissect the Sub. Optics. 02502_ HM-O6S(O) collects matter. 02508_ Subatomizers dissect the Sub. Optics, destroying it. 02514_ Acquired Scrap Shield Fragment. 02518_ Subatomizers dissect the Disposable Heat Sink. 02521_ Acquired Scrap Shield Fragment. 02529_ Subatomizers dissect the Disposable Heat Sink. 02529_ Acquired Scrap Shield Fragment. 02539_ HM-O6S(O) puts together Sub. Beam Cannon. 02543_ Subatomizers dissect the Disposable Heat Sink. 02569_ Subatomizers dissect the Disposable Heat Sink, destroying it. W3-KYT(R) emerges from concealment. 02640_ Critical hit (Meltdown: +260). Map ----- +----------------------------------------------------+ | ?????????????????????????????????????????????????? | | ?????????????????????????????????????????????????? | | ?????????????????????????????????????????????????? | | ?????????????????????????????????????????????????? | | ?????????????????????????????????????????????????? | | ?????????????????????????????????????????????????? | | ?????????????????????????????????????????????????? | | ?????????????????????????????????????????????????? | | ?????????????????????????????????????????????????? | | ?????????????????????????????????????????????????? | | ?????????????????????????????????????????????????? | | ?????????????????????????????????????????????????? | | ?????????????????????????????????????????????????? | | ?????????????????????????????????????????????????? | | ?????????????????????????????????????????????????? | | ?????????????????????????????????????????????????? | | ?????????????????????????????????????????????????? | | ?????????????????????????????????????????????????? | | ###????????######????###?????????????????????????? | | ########## #????# ;#????????????????????????? | | ## ## ##??## ##???????????????????????? | | #### #???????????????????????? | | ####?? #????????????????? | | # # # # # #?????????????????? | | ######### ##### #?????????????????? | | ###????## ##???# @ #?????????????????? | | ##????###????## ###?????????????????? | | #????????????### ##???????????????????? | | #### #??????????????# ##????????????????????? | | #"#??? #??????????????#RR#?????????????????????? | | ###???? #?????????????? #?????????????????????? | | #?????? "?????????????? R ?????????????????????? | | ##???????##????????????? ?????????????????????? | | #???????????????????????" " ????????????????????? | | ????????????????????????"" "????????????????????? | | ???????????????????????? """ ???????????????????? | | ???????????????????????? """????????????????????? | | ??????????????????????????#"?????????????????????? | | ??????????????????????????????????????????????? | | #????????????????????????????????????????????? | | #?????????????????????????????????????????????? | | #?????????????????????????????????????????????? | | #?????????????????????????????????????????????? | | ? ##?????????????????????????????????????????????? | | ??#??????????????????????????????????????????????? | | ?????????????????????????????????????????????????? | | #??????????????????????????????????????????????? | | #???????????????????????????????????????????????? | | ##???????????????????????????????????????????????? | | ?????????????????????????????????????????????????? | +----------------------------------------------------+ Best States ------------- Heat Dissipation 25 Energy Generation 12 Energy Capacity 265 Matter Stores 300 Matter Capacity 300 Sight Range 21 Terrain Scan Density 10 Evasion (%) 42 Recoil Reduction 2 Item Schematics ----------------- None Robot Schematics ------------------ None Fabricated ------------ Nothing Alien Tech Used ----------------- None Achievements -------------- None Challenges ------------ None Game ------ Seed ScrapoidDynamicRedirector Manual? 0 Play Time 00:13:30 Cumulative 445.7 hours Start 2024.12.29 @ 14:22:10 End 2024.12.29 @ 15:29:49 Sessions 1 Manual Loads 0 Difficulty Rogue Special Mode None Game No. 278 Rogue 275 Adventurer 3 Explorer 0 Win Type - Total 8 Types 7/0/1/0/0/0/0/0/0 Lore% 44 Gallery% 73 Achievement% 67 Wizard Run 0 Options --------- Layout 0 ASCII 0 Keyboard 0 Movement Numpad Keybinds 0 Fullscreen 1 Font 18/SmallcapsGlow Map View 76x50 Zoom Use 0% Tactical HUD 1 Map Filters NONE Filters NONE Steam 1 RUN: 97e454cc-4e28-4cda-a2e3-c7b6d36d2054